Cogmind - Beta 16 @@@ ROGUE MODE // 2025.12.24 @ 07:08:21 Player: War__Prophet Result: Destroyed by G-34 Mercenary with Small Laser Performance ------------- Evolutions (1) 500 Regions Visited (2) 400 Robots Destroyed (4) 20 Value Destroyed (131) 131 Prototype IDs (0) 0 Alien Tech Used (0) 0 Bonus (0) 0 TOTAL SCORE: 1051 Bonus ------- None Cogmind --------- Core Integrity 0/400 Matter 221/300 Energy 100/100 System Corruption 0% Temperature Cool (6) Movement Core (50) Location -9/Materials Parts ------- > --- POWER (1) -------- (None) > --- PROPULSION (4) --- (None) > --- UTILITY (2) ------ (None) > --- WEAPON (2) ------- (None) > --- INVENTORY (5) ---- (None) Peak State ------------ > --- POWER ------------ Light Nuclear Core > --- PROPULSION ------- VTOL Module VTOL Module VTOL Module VTOL Module > --- UTILITY ---------- Small Storage Unit Improved Sensor Array > --- WEAPON ----------- Assault Rifle Assault Rifle > --- INVENTORY -------- Ion Engine Light Ion Engine Medium Matter Pod Advanced Visual Processing Unit Advanced Visual Processing Unit Light Assault Rifle [Rating: 18] Favorites ----------- Power Light Ion Engine Engine Light Ion Engine Power Core Light Nuclear Core Propulsion Light Treads Treads Light Treads Flight Unit VTOL Module Utility Small Storage Unit Device Improved Sensor Array Storage Small Storage Unit Weapon Assault Rifle Ballistic Gun Assault Rifle Build | -11 -10 -9 ------- Run | Yrd Mat Mat Slots Evolved 2 | . . 2 Power . | . . . Propulsion 2 | . . 2 Utility . | . . . Weapon . | . . . Parts Attached 13 | 7 1 5 Power 2 | 1 1 . Engine 1 | 1 . . Core 1 | . 1 . Reactor . | . . . Propulsion 6 | 2 . 4 Treads 2 | 2 . . Leg . | . . . Wheel . | . . . Hover . | . . . Flight 4 | . . 4 Utility 2 | 1 . 1 Device 1 | . . 1 Storage 1 | 1 . . Processor . | . . . Hackware . | . . . Protection . | . . . Artifact . | . . . Weapon 3 | 3 . . Energy Gun . | . . . Energy Cannon . | . . . Ballistic Gun 3 | 3 . . Ballistic Cannon . | . . . Launcher . | . . . Special Weapon . | . . . Impact Weapon . | . . . Slashing Weapon . | . . . Piercing Weapon . | . . . Special Melee Weapon . | . . . Unidentified Prototypes . | . . . Parts Lost 3 | . . 3 Power 1 | . . 1 Propulsion 1 | . . 1 Utility . | . . . Weapon 1 | . . 1 Highest Loss Streak 3 | . . 3 To Critical Strikes . | . . . Average Backups 3 | 1 3 5 Power 1 | . 1 1 Propulsion . | . . . Utility 1 | . . 3 Weapon . | . 1 . Tool/Special . | . . . Unused Backups 6 | . . 6 Power 1 | . . 1 Propulsion . | . . . Utility 5 | . . 5 Weapon . | . . . Tool/Special . | . . . Average Slot Usage (%) 77 | . 85 64 Engine 6 | . 10 . Core 4 | . 3 6 Treads 17 | . 28 . Flight 11 | . . 29 Device 2 | . . 5 Storage 11 | . 14 8 Ballistic Gun 22 | . 28 13 Peak Build Rating 18 | 6 9 18 Average Rating 7 | 4 6 11 On Entrance 5 | . 6 9 Avg Prop Armor Cover (%) . | . . . Naked Turns 34 | . . 34 Heaviest Build 15 | 12 14 15 Greatest Support 40 | 40 40 16 Greatest Overweight (x) . | . . . Average Overweight (x) . | . . . Largest Inventory Capacity 8 | 8 8 8 Average Capacity 7 | 6 8 7 Most Carried 8 | 2 8 8 Average Carried 3 | 1 3 5 Final Capacity 8 | 8 8 5 Final Carried 8 | 2 8 . Class Distribution -------------------- 76% | Mutant 23% | Sprinter Dominant Class ---------------- Mutant | -10/Materials Sprinter | -9/Materials Resources | -11 -10 -9 ----------- Run | Yrd Mat Mat Matter Collected 289 | 172 38 79 Remotely . | . . . Salvage Created 161 | . 161 . Parts 9 | . 9 . Haulers Intercepted . | . . . Recyclers Shooed 3 | . 3 . Parts Field Recycled . | . . . Retrieved Matter . | . . . Parts Self-Destructed . | . . . Prevented . | . . . Parts Restored . | . . . Kills | -11 -10 -9 ------- Run | Yrd Mat Mat Combat Hostiles Destroyed 3 | . 3 . Guns 3 | . 3 . Classes Destroyed 2 | . 2 . Watcher 1 | . 1 . Grunt 3 | . 3 . Best Kill Streak 4 | . 4 . Combat Bots Only 3 | . 3 . Max Kills in Single Turn 1 | . 1 . Gunslinging . | . . . Exploded . | . . . Melee . | . . . Uniques/NPCs Destroyed . | . . . Combat | -11 -10 -9 -------- Run | Yrd Mat Mat Hostile Shots Fired 128 | . 52 76 Missed 51 | . 21 30 Hits 77 | . 31 46 Melee 2 | . . 2 Projectile 75 | . 31 44 Critical Strikes 1 | . . 1 Damage Taken 939 | . 357 582 Core 445 | . 37 408 Absorbed by Shields . | . . . Core Remaining (%) 92 | 100 85 . Volleys Fired 26 | . 24 2 Largest 2 | . 2 2 Hottest 40 | . 40 40 Shots Fired 51 | . 48 3 Gun 51 | . 48 3 Cannon . | . . . Launcher . | . . . Special . | . . . Kinetic 51 | . 48 3 Thermal . | . . . Explosive . | . . . Electromagnetic . | . . . Robot Hit Streak 7 | . 7 1 Robot Miss Streak 6 | . 6 2 Penetration Max . | . . . Secondary Targets 2 | . 2 . Max Gunslinging Chain 1 | . 1 . Shots Hit Robots 28 | . 27 1 Core Hits 12 | . 12 . Critical Kills . | . . . Critical Parts Destroyed . | . . . Critical Strikes . | . . . Melee Attacks . | . . . Impact . | . . . Slashing . | . . . Piercing . | . . . Sneak Attacks . | . . . Combat Hostiles . | . . . Follow-up Attacks . | . . . Damage Inflicted 516 | . 423 93 Guns 420 | . 405 15 Cannons . | . . . Explosions . | . . . Melee . | . . . Ramming 96 | . 18 78 Kinetic 420 | . 405 15 Thermal . | . . . Explosive . | . . . Electromagnetic . | . . . Impact . | . . . Slashing . | . . . Piercing . | . . . Highest Corruption . | . . . Average Corruption . | . . . Corruption Purged . | . . . Corruption Blocked . | . . . Overload Shots . | . . . Overflow Damage . | . . . Projectiles . | . . . Explosions . | . . . Melee . | . . . Knockbacks . | . . . Impact . | . . . Kinetic . | . . . Secondary . | . . . Self-Inflicted Damage 36 | . . 36 Shots . | . . . Rammed 27 | . 11 16 Targets Rammed 27 | . 11 16 Kicked . | . . . Crushed . | . . . Highest Temperature 18 | . 8 18 Average Temperature 5 | . 3 7 Received Heat Transfer 366 | . 204 162 Siege Activations . | . . . Martial Activations . | . . . Shielding Activations . | . . . Robots Disrupted . | . . . Combat Hostiles . | . . . Robots Corrupted . | . . . Combat Hostiles . | . . . Parts Fried . | . . . Impact Corruptions . | . . . Robots Melted . | . . . Combat Hostiles . | . . . Parts Melted . | . . . Heat Transferred . | . . . Parts Sabotaged . | . . . Parts Stolen . | . . . Parts Stripped . | . . . Power Chain Reactions . | . . . Alert | -11 -10 -9 ------- Run | Yrd Mat Mat Maximum Alert Level . | . . . Low Security (%) 100 | 100 100 100 Level 1 . | . . . Level 2 . | . . . Level 3 . | . . . Level 4 . | . . . Level 5 . | . . . High Security . | . . . Max Security . | . . . Peak Influence 162 | . 67 162 Initial 8 | . . 8 Average 33 | . 20 80 Influence Increases 325 | . 81 244 Destroy 0b10 Robot/C 60 | . 60 . Destroy 0b10 Robot/NC 5 | . 5 . Destroy Leader 12 | . 12 . Successful Hack 8 | . 4 4 Partial Spotted 30 | . . 30 Lose Combat Pursuer 210 | . . 210 Influence Decreases 163 | . 60 103 Entered New Map 13 | . . 13 Time Decay 120 | . 60 60 Lost Part 30 | . . 30 Squads Dispatched 3 | . 1 2 Investigation 1 | . . 1 Extermination . | . . . Reinforcement 2 | . 1 1 Assault . | . . . Garrison . | . . . Intercept . | . . . Searches Triggered . | . . . Construction Impeded . | . . . Haulers Reinforced . | . . . Active Scanning Responses . | . . . Cargo Convoy Interrupts . | . . . Stealth | -11 -10 -9 --------- Run | Yrd Mat Mat Distress Signals 3 | . 1 2 Communications Jammed . | . . . Distress Signals . | . . . Times Spotted 38 | . 11 27 Peak Tracking Total 14 | . 6 14 Tactical Retreats 3 | . . 3 Traps | -11 -10 -9 ------- Run | Yrd Mat Mat Traps Triggered 1 | . . 1 Indirectly . | . . . Trap Hack Attempts . | . . . Triggered . | . . . Disarmed . | . . . Reprogrammed . | . . . Reused . | . . . Traps Extracted . | . . . Installed . | . . . Triggered . | . . . Machines | -11 -10 -9 ---------- Run | Yrd Mat Mat Machines Disabled . | . . . Max in Single Turn . | . . . Machines Repaired . | . . . Machines Dismantled . | . . . Machines Sabotaged . | . . . Overloaded Fab Kills . | . . . Hacking | -11 -10 -9 --------- Run | Yrd Mat Mat Machines Accessed 2 | . 1 1 Terminals 2 | . 1 1 Fabricators . | . . . Repair Stations . | . . . Recycling Units . | . . . Scanalyzers . | . . . Garrison Access . | . . . Total Hacks 2 | . 1 1 Successful 2 | . 1 1 Failed . | . . . Catastrophic . | . . . Database Lockouts . | . . . Manual 2 | . 1 1 Terminals 2 | . 1 1 Fabricators . | . . . Repair Stations . | . . . Recycling Units . | . . . Scanalyzers . | . . . Garrison Access . | . . . Terminal Hacks . | . . . Fabricator Hacks . | . . . Repair Station Hacks . | . . . Recycling Unit Hacks . | . . . Scanalyzer . | . . . Garrison Access Hacks . | . . . Unauthorized Hacks 2 | . 1 1 Terminals 2 | . 1 1 Skim 2 | . 1 1 Fabricators . | . . . Repair Stations . | . . . Recycling Units . | . . . Scanalyzers . | . . . Garrison Access . | . . . Data Cores Recovered . | . . . Used . | . . . Hacking Detections . | . . . Full Trace Events . | . . . Feedback Events . | . . . Feedback Blocked . | . . . Robot Schematics Acquired . | . . . Robots Built . | . . . Authchips . | . . . Time . | . . . Total Robot Build Rating . | . . . Part Schematics Acquired . | . . . Parts Built . | . . . Authchips . | . . . Time . | . . . Total Part Build Rating . | . . . Part Studies Acquired . | . . . Parts Repaired . | . . . Time . | . . . Parts Recycled . | . . . Recycled Matter . | . . . Retrieved Matter . | . . . Retrieved Components . | . . . Parts Scanalyzed . | . . . Part Schematics Acquired . | . . . Parts Damaged . | . . . Bothacking | -11 -10 -9 ------------ Run | Yrd Mat Mat Used RIF Installer . | . . . Robots Hacked . | . . . Non-combat . | . . . Combat . | . . . Robot Hacks Applied . | . . . Relay Couplers Released . | . . . Fabnet Peak Effective % . | . . . Robots Rewired . | . . . Allies Hacked . | . . . Hacks Repelled . | . . . Allies | -11 -10 -9 -------- Run | Yrd Mat Mat Total Allies . | . . . Largest Group . | . . . Highest-Rated Group . | . . . Highest-Rated Ally . | . . . Total Orders . | . . . Ally Attacks . | . . . Total Damage . | . . . Kills . | . . . Allies Corrupted . | . . . Allies Melted . | . . . Intel | -11 -10 -9 ------- Run | Yrd Mat Mat Active Infowar (turns) 82 | . . 82 Sensors 82 | . . 82 Robot Analysis Total . | . . . Derelict Logs Recovered . | . . . Drone Launches . | . . . Drone Recoveries . | . . . Exploration | -11 -10 -9 ------------- Run | Yrd Mat Mat Turns Passed 481 | 98 244 139 Spaces Moved 481 | 57 93 331 Core 35 | 3 . 32 Treads 147 | 54 93 . Legs . | . . . Wheels . | . . . Hover . | . . . Flight 299 | . . 299 Fastest Speed 26 | 50 160 26 Average Speed 68 | 154 160 28 Slowest Speed 160 | 160 160 50 Overloaded Moves . | . . . Propulsion Burnouts . | . . . Robots Hopped 14 | . . 14 Potential Cave-ins . | . . . Cave-ins Triggered . | . . . Exploration Rate (%) 21 | 4 31 28 Regions Visited 2 Branch Regions . Pre-discovered Areas . | . . . Known Exits Taken . | . . . Unknown Exits Taken 2 | 1 1 . Scrap Searched . | . . . Spaces Dug . | . . . Terrain Destroyed . | . . . Melee . | . . . Projectile . | . . . AOE . | . . . Terrain Rammed . | . . . Walls Destroyed . | . . . Machines Disabled . | . . . Actions | -11 -10 -9 --------- Run | Yrd Mat Mat Total 559 | 64 133 362 Wait 11 | . . 11 Move 454 | 56 93 305 Hop 12 | . . 12 Pick Up 10 | 1 5 4 Fast Attach 7 | 6 . 1 Attach 4 | . . 4 Detach . | . . . Swap 2 | 1 1 . Drop 7 | . . 7 Fire 26 | . 24 2 Melee . | . . . Ram 16 | . . 16 Kick . | . . . Crush 10 | . 10 . Escape Stasis . | . . . Rewire . | . . . Trap . | . . . Miscellaneous . | . . . Route ------- -11/Scrapyard -10/Materials (discovered 2 exits: *Mat / [*Min]) -9/Materials History --------- Turn | Location | Event 6 | -11/Scrapyard | Discovered new exit (range 16) 99 | -11/Scrapyard | Entered Materials 161 | -10/Materials | Discovered new exit (range 15) 302 | -10/Materials | Discovered new exit (range 14) 315 | -10/Materials | Build established: Mutant 343 | -10/Materials | Entered another Materials area 343 | -9/Materials | Evolved 2 slots: Propulsion x2 448 | -9/Materials | Released all parts (5) 465 | -9/Materials | Core integrity fell below 50% 475 | -9/Materials | Lost 3 parts (1p1n1w) 479 | -9/Materials | Core integrity fell below 20% 482 | -9/Materials | Destroyed by G-34 Mercenary with Small Laser Last Messages --------------- 00450_ Dropped Ion Engine. 00451_ Dropped Lgt. Ion Engine. 00451_ R-06 Scavenger collects Adv. Visual Processing Unit. 00451_ Dropped Imp. Heat Sink. 00452_ Dropped Med. Matter Pod. 00452_ Dropped Imp. Sensor Array. 00456_ Slammed into Y-45 Defender. 00466_ Slammed into G-34 Mercenary. 00470_ Slammed into A-02 Transporter. 00470_ A-02 Transporter sends out distress signal. 00471_ Slammed into U-05 Engineer. 00472_ Slammed into A-02 Transporter. 00472_ Destabilizing: Core damaged (-4). 00473_ Slammed into A-02 Transporter. 00476_ S-10 Pest destroyed. 00477_ Slammed into G-34 Mercenary. 00479_ Acquired 18 matter. 00479_ Slammed into G-34 Mercenary. Map ----- +----------------------------------------------------+ | | | | | | | | | | | ?????????????????????????????????????????????????? | | ?????????????????????????????????????????????????? | | ?????????????????????????????????????????????????? | | ?????????????????????????????????????????????????? | | ????????????????????????????#####????????????????? | | ????????????????????????##### !!#????????????????? | | ????????????????????????# #????????????????? | | ######??????????????????# ! #????????????????? | | #??????????????????+ !#????????????????? | | /#??????????????????# ! #????????????????? | | #??????????????????# !!#??????######????? | | #################### #########?##!!!!##???? | | + g # "T" #??! !#???? | | #### ############### + #?? #???? | | #??# #????????###??# # ! #??# #???? | | #??# #?????? # ?# s #########??# #???? | | #??# #???? # #a ############= | #???? | | ######### #?? # # #???? | | # # g s ############ #???? | | + # # ## T ] ! # #???? | | # [[[ ######@ ## ## ##???? | | ###########?? [[[ #???# g # """"""" ## #????? | | """ #????????[ #???# g # """"""" ## #????? | | "R" #?????????? #???# + """"""" ## #????? | | " " #????????????#???# %# """"""" ## #????? | | #????????????????# # """"""" ## #????? | | /#????????????????## ## ## #????? | | """ #?????????????????# ############# #????? | | """ #?????????????????/u #???????? #?# #????? | | """ #?????????????????# #?????? #?# #????? | | #?????????????????# #???? #?# #????? | | #######?????????????????# #?? #?# #????? | | ????????????????????????+ # #?# #????? | | #??????????????????????##w + #?# #????? | | #???????????????????????# # #?# #????? | | #???????????????????????# #?? #?# #????? | | #???????????????????????# ############# #####? | | #???????????????????????# | | #???????????????????????+ " | | ????????????????????????# "%" | | ????????????????????????# ####################/# | | ????????????????????? #???????????????????? | | ?????????????????? #????????????????????? | | ??????????????????? #????????????????????? | | ????????????????? ######????????????????????? | +----------------------------------------------------+ Best States ------------- Heat Dissipation 28 Energy Generation 14 Energy Capacity 160 Matter Stores 213 Matter Capacity 300 Sight Range 16 Robot Scan Range 15 Terrain Scan Density 10 Evasion (%) 64 Recoil Reduction 2 Item Schematics ----------------- None Robot Schematics ------------------ None Fabricated ------------ Nothing Repaired ---------- Nothing Studied --------- None Alien Tech Used ----------------- None Achievements -------------- None Challenges ------------ None Game ------ Seed DisassembledFieldExpander Manual? 0 Play Time 00:05:30 Cumulative 58.4 hours Start 2025.12.24 @ 07:04:55 End 2025.12.24 @ 07:08:21 Sessions 1 Manual Loads 0 Difficulty Rogue Special Mode None Game No. 214 Rogue 214 Adventurer 0 Explorer 0 Win Type - Total 0 Types 0/0/0/0/0/0/0/0/0/0 Lore% 14 Gallery% 40 Achievement% 27 Wizard Run 0 Options --------- Layout 1 ASCII 0 Keyboard 1 Movement Vi Keybinds 0 Fullscreen 1 Font 24/Smallcaps Map View 50x35 Zoom Use 0% Tactical HUD 1 Map Filters NONE Filters NONE Steam 1 RUN: 31c5caf6-187f-41da-9375-5b23abb59f0d